bitfinex/quotes_ETHUSD_20241223
["timestamp","ask_amount","ask_price","bid_price","bid_amount"]
[1734926288419,0.8184,3352.9,3351.8,3.53341]
[1734926288631,0.8184,3352.9,3352.0,2.98327]
[1734926289056,0.8184,3352.9,3352.1,2.98319]
[1734926289356,0.8184,3352.9,3351.9,0.59818434]
[1734926291017,0.8184,3352.9,3351.8,3.53341]
[1734926291270,0.8184,3352.9,3351.8,1.13707234]
[1734926291451,0.8184,3352.9,3352.0,2.98328]
[1734926293359,0.8184,3352.9,3351.9,3.48982475]
[1734926294762,0.1510889,3354.7,3352.7,6.47245475]
[1734926294926,0.77,3354.5,3352.7,6.47245475]
[1734926295126,0.77,3353.9,3352.7,3.48982475]
[1734926295330,0.77,3353.9,3352.8,2.98257]
[1734926295577,0.77,3353.9,3352.7,3.48982475]
[1734926296232,0.77,3353.9,3352.8,2.70818045]
[1734926296823,3.75161,3353.9,3352.8,2.70818045]
[1734926297837,4.126771,3353.9,3352.8,2.70818045]
[1734926298228,4.126771,3353.9,3352.8,3.48659972]
[1734926298431,1.145161,3353.9,3352.8,3.48659972]
[1734926298726,0.77,3353.9,3352.8,6.46913972]
[1734926298929,0.77,3353.9,3352.8,3.48659972]
[1734926299569,0.77,3353.9,3352.8,6.46915972]
[1734926301067,3.75161,3353.9,3352.8,3.48659972]
[1734926302271,0.77,3353.9,3352.8,3.48659972]
[1734926302456,0.77,3353.9,3352.8,6.46916972]
[1734926302649,0.77,3353.9,3352.9,2.98243]
[1734926303178,0.77,3353.9,3353.0,2.98238]
[1734926303367,0.77,3353.9,3352.5,0.59418004]
[1734926303368,0.77,3353.9,3353.3,2.98213]
[1734926303535,0.77,3353.9,3353.2,3.48659972]
[1734926303735,0.77,3353.9,3353.4,2.98202]
[1734926304438,0.77,3353.9,3353.2,3.48659972]
[1734926304637,0.77,3353.9,3353.2,6.46879972]
[1734926305266,0.77,3353.9,3353.3,2.98212]
[1734926305465,0.77,3353.9,3353.2,3.48659972]
[1734926305636,2.98126,3354.3,3353.2,3.48659972]
[1734926305830,0.6105407,3355.0,3353.2,3.48659972]
[1734926306043,0.55,3354.5,3352.6,0.60851054]
[1734926306242,2.98249,3352.9,3352.0,1.80521412]
[1734926306543,3.0,3353.8,3352.1,3.48659972]
[1734926306746,2.98225,3353.2,3352.1,3.48659972]
[1734926306952,3.0,3353.8,3352.0,1.80521412]
[1734926307168,2.9821,3353.4,3351.7,4.84569457]
[1734926307567,3.0,3353.2,3352.0,2.98323]
[1734926308371,3.0,3353.2,3352.0,2.9832]
[1734926308538,2.98215,3353.3,3352.0,0.55]
[1734926308738,3.76717,3353.2,3352.0,2.98321]
[1734926308975,0.7849,3353.2,3352.0,2.98328]
[1734926309738,0.8174,3353.0,3351.9,2.98335]
[1734926311087,0.8174,3353.0,3351.9,0.55]
[1734926311289,0.8174,3353.0,3352.1,2.98316]
[1734926311673,0.8174,3353.0,3351.9,3.53335]
[1734926311871,0.8174,3353.0,3351.9,0.55]
[1734926312052,0.8174,3353.0,3352.0,2.98327]
[1734926313067,0.8174,3353.0,3352.0,3.59104275]
[1734926313471,0.8174,3353.0,3352.0,0.60777275]
[1734926313847,0.8174,3353.0,3351.9,0.55]
[1734926314048,0.8174,3353.0,3352.1,3.48659972]
[1734926314297,0.8174,3353.0,3352.2,0.55]
[1734926314507,0.8174,3353.0,3352.1,3.48659972]
[1734926314813,0.8174,3353.0,3352.2,0.55]
[1734926315384,0.8174,3353.0,3352.1,3.48659972]
[1734926315563,2.98251,3352.9,3351.8,8.98]
[1734926315903,0.778,3352.8,3351.8,8.98]
[1734926316919,2.98204,3353.4,3351.8,8.98]
[1734926317201,3.76097,3352.4,3351.3,3.48659972]
[1734926317407,3.76097,3352.4,3351.4,0.61140508]
[1734926317890,0.778,3352.4,3351.4,0.61140508]
[1734926318083,0.778,3352.4,3351.4,3.59520508]
[1734926318284,3.76094,3352.4,3351.6,2.7097839]
[1734926320595,3.76094,3352.4,3351.4,0.61140508]
[1734926320596,2.98323,3352.1,3351.4,0.61140508]
[1734926320804,2.98233,3353.1,3351.0,2.7097839]
[1734926320805,0.7824,3352.9,3351.0,2.7097839]
[1734926321097,0.7824,3351.5,3350.7,2.7097839]
[1734926321258,0.7824,3351.5,3350.5,1.20388116]
[1734926321596,0.7824,3351.5,3350.4,2.7097839]
[1734926322163,0.7824,3351.5,3350.7,2.7097839]
[1734926322392,0.7824,3351.5,3350.8,2.98435]
[1734926323315,0.7824,3351.5,3350.7,3.31019957]
[1734926323503,0.7824,3351.5,3350.7,6.29462957]
[1734926323704,0.7824,3351.5,3350.7,3.31019957]
[1734926323905,2.98382,3351.4,3350.4,5.7097839]
[1734926324218,0.8178,3351.0,3350.1,1.20388116]
[1734926324403,0.8178,3350.8,3350.1,1.20388116]
[1734926324605,0.8178,3350.8,3349.9,1.20388116]
[1734926324779,2.98472,3350.4,3349.9,1.20388116]
[1734926324984,0.7689,3350.3,3349.9,1.20388116]
[1734926326088,0.7689,3350.3,3349.7,0.58260894]
[1734926326283,2.98506,3350.1,3349.7,0.58260894]
[1734926326513,0.7504,3350.0,3348.9,7.69741478]
[1734926327519,0.7504,3350.0,3348.9,6.49353362]
[1734926327721,0.7504,3350.0,3349.2,2.98571]
[1734926328023,0.7868,3351.2,3349.8,3.0]
[1734926328208,0.7868,3351.2,3350.3,2.9848]
[1734926328387,0.7868,3351.2,3350.6,3.0]
[1734926328588,0.7868,3351.2,3350.6,5.98448]
[1734926329424,0.7868,3351.2,3349.7,2.98533]
[1734926329425,0.7868,3351.2,3350.0,2.98506]
[1734926329610,0.7868,3351.2,3349.9,4.75388116]
[1734926329809,0.7868,3351.2,3349.9,1.75388116]
[1734926330122,0.7868,3351.2,3350.3,2.98477]
[1734926330697,0.7868,3351.2,3350.1,3.58777554]
[1734926330891,0.7868,3351.2,3350.3,2.98479]
[1734926331218,0.7868,3351.2,3350.3,0.55]
[1734926331725,0.7868,3351.2,3350.6,2.98447]
[1734926331924,0.7868,3351.2,3350.1,3.60279554]
[1734926332118,0.7868,3351.2,3350.1,0.60279554]
[1734926332697,0.7859,3351.6,3350.0,3.0]
[1734926332896,3.77009,3351.0,3349.9,0.59251689]
[1734926333102,3.77009,3351.0,3349.9,3.59251689]
[1734926334023,0.7859,3351.0,3349.9,3.59251689]
[1734926334222,0.7859,3351.0,3349.9,0.59251689]
[1734926334426,0.7859,3351.0,3350.2,2.98488]
[1734926335201,0.7859,3351.0,3349.9,0.59251689]
[1734926336024,0.7859,3351.0,3350.0,2.98507]
[1734926336331,0.7859,3351.0,3350.2,2.98482]
[1734926336528,0.7859,3351.0,3350.3,2.98476]
[1734926337025,0.7859,3351.0,3350.5,2.98455]
[1734926337591,0.7859,3351.0,3350.3,2.98479]
[1734926338402,0.7859,3351.0,3350.4,2.98471]
[1734926339001,0.7859,3351.0,3350.6,2.98452]
[1734926339596,0.7859,3351.0,3350.4,3.58235347]
[1734926340007,0.7859,3351.0,3350.6,2.98453]
[1734926340424,0.7859,3351.0,3350.4,3.58234347]
[1734926340621,0.7859,3351.0,3350.9,2.98427]
[1734926340901,0.7829,3352.0,3351.0,2.98415]
[1734926341417,3.0,3351.9,3350.7,2.98436]
[1734926341633,0.7829,3351.8,3350.7,2.98436]
[1734926342004,2.98349,3351.8,3350.5,2.98455]
[1734926342202,0.8208,3351.6,3350.5,2.98455]
[1734926342394,3.281979,3351.7,3350.3,3.0]
[1734926342395,2.98383,3351.4,3350.3,3.0]
[1734926342731,0.8146,3351.3,3350.2,0.55]
[1734926343507,0.8146,3351.3,3350.3,2.9848]
[1734926343834,0.7878,3351.7,3350.5,3.53462]
[1734926344035,0.7878,3351.7,3350.9,3.0]
[1734926344231,0.7878,3352.6,3351.3,2.98385]
[1734926344431,0.7878,3352.2,3351.0,11.98]
[1734926344635,0.7778,3352.4,3351.0,8.98]
[1734926344855,0.7778,3352.1,3350.2,3.0]
[1734926344999,0.7778,3351.2,3350.2,3.0]
[1734926345200,3.7618,3351.2,3350.1,2.98497]
[1734926345405,0.7778,3351.2,3350.1,1.20388116]
[1734926345632,0.7778,3351.2,3350.6,2.9845]
[1734926345942,0.7778,3351.2,3350.1,7.68233478]
[1734926346148,0.8202,3352.0,3351.0,2.98416]
[1734926347244,3.8035,3352.0,3350.8,5.69539439]
[1734926347544,0.8202,3352.0,3350.8,5.69538439]
[1734926350517,2.98375,3351.5,3350.5,3.0]
[1734926350724,1.096275,3351.4,3350.3,5.98475]
[1734926352211,1.096275,3351.4,3350.4,2.98469]
[1734926352722,0.7979,3351.4,3350.4,2.98469]
[1734926353348,0.7902,3351.9,3350.3,0.60569307]
[1734926353524,2.98418,3351.1,3350.3,0.60569307]
[1734926353712,2.98418,3351.1,3350.1,1.20388116]
[1734926353713,2.98464,3350.5,3350.1,1.20388116]
[1734926353912,0.7902,3350.4,3350.1,1.20388116]
[1734926354109,0.7902,3351.9,3350.1,1.20388116]
[1734926354320,0.7902,3351.6,3350.3,2.98473]
[1734926354520,0.7902,3351.6,3349.9,3.46986439]
[1734926354741,0.7902,3351.2,3350.0,2.98499]
[1734926355044,0.377412,3351.1,3350.2,3.0]
[1734926355242,0.7902,3351.2,3350.2,3.0]
[1734926356335,3.7742,3351.2,3350.2,3.0]
[1734926356549,3.7742,3351.2,3349.9,4.96268116]
[1734926357047,3.7742,3351.2,3350.0,2.98506]
[1734926357558,3.7742,3351.2,3350.1,3.0]
[1734926358926,3.7742,3351.2,3350.2,1.00736409]
[1734926359925,3.7742,3351.2,3350.1,3.58735825]
[1734926360126,0.8273,3351.0,3350.0,2.98506]
[1734926360830,0.8273,3351.0,3350.1,2.98498]
[1734926361253,0.8273,3351.0,3350.3,2.98479]
[1734926361957,0.8273,3351.0,3350.2,2.52109458]
[1734926362560,3.81149,3351.0,3350.0,1.78795274]
[1734926363831,3.81149,3351.0,3350.1,2.52359982]
[1734926364075,4.192639,3351.0,3350.1,2.52359982]
[1734926364372,0.8142,3350.9,3350.1,2.52359982]
[1734926364873,0.8142,3350.7,3350.1,2.52359982]
[1734926365229,3.79867,3350.7,3350.1,2.52359982]
[1734926365455,0.8142,3350.7,3350.1,2.52359982]
[1734926365665,2.98454,3350.6,3350.1,2.52359982]
[1734926366159,2.98454,3350.6,3350.0,0.58407158]
[1734926366379,0.8142,3350.7,3350.0,0.58407158]
[1734926366589,1.2321749,3350.7,3350.0,0.58407158]
[1734926367089,2.98493,3350.2,3349.8,1.20388116]
[1734926367295,0.7728,3350.1,3349.8,1.20388116]
[1734926367653,2.98516,3349.9,3349.8,1.20388116]
[1734926367858,3.81446,3349.9,3349.8,1.20388116]
[1734926368166,0.8293,3349.9,3349.8,1.20388116]
[1734926368364,1.10859725,3349.9,3349.8,1.20388116]
[1734926368782,1.10859725,3349.9,3349.4,0.60259646]
[1734926368950,0.27929725,3349.9,3349.4,0.60259646]
[1734926369292,0.8214,3350.9,3349.9,2.98515]
[1734926369762,0.2789729,3350.8,3350.2,3.49225451]
[1734926369951,0.2789729,3350.8,3350.5,2.98462]
[1734926370154,1.85685885,3351.2,3350.6,3.49225451]
[1734926370155,0.7641,3351.2,3350.6,3.49225451]
[1734926370686,0.7641,3351.2,3350.6,6.47677451]
[1734926371175,0.7641,3351.2,3350.7,2.52601945]
[1734926372054,0.7641,3351.2,3350.7,1.01040778]
[1734926372479,0.7992,3352.1,3351.0,3.49225451]
[1734926372958,0.7992,3352.1,3351.5,3.49225451]
[1734926373161,0.7992,3352.1,3351.6,2.98363]
[1734926373681,0.7992,3352.1,3351.3,2.98386]
[1734926373888,0.7992,3352.1,3351.4,2.98382]
[1734926374403,0.7992,3352.6,3351.3,0.55]
[1734926374570,0.7992,3352.6,3351.7,2.52591201]
[1734926375395,0.8229,3352.5,3351.7,2.52591201]
[1734926375692,0.8229,3351.8,3351.7,1.01040778]
[1734926376190,3.8229,3351.8,3351.7,1.01040778]
[1734926376356,3.8229,3351.8,3351.7,7.78e-06]
[1734926376782,2.98441,3350.8,3350.5,2.7208064]
[1734926376987,0.8229,3350.7,3350.5,2.7208064]
[1734926377756,0.8229,3350.7,3350.0,0.59522209]
[1734926379812,0.8229,3350.7,3350.0,4.0874766]
[1734926380611,0.8229,3350.7,3350.0,7.0725266]
[1734926381197,0.8229,3350.7,3350.1,1.51655302]
[1734926382211,0.8229,3350.7,3350.2,2.72043418]
[1734926383513,0.8229,3350.7,3350.1,1.51655302]
[1734926384279,1.20362,3350.7,3350.1,1.51655302]
[1734926384613,1.20362,3350.7,3350.0,4.0874766]
[1734926385001,0.7549,3351.6,3350.4,6.47694451]
[1734926385514,0.27868384,3351.5,3350.4,6.47694451]
[1734926385689,0.27868384,3351.4,3350.4,6.47694451]
[1734926386108,0.27868384,3351.4,3350.5,1.51687467]
[1734926386306,0.40335838,3351.4,3350.5,1.51687467]
[1734926386510,2.98392,3351.3,3350.5,1.51687467]
[1734926386712,0.7819,3351.2,3350.5,1.51687467]
[1734926387025,0.7819,3351.2,3350.3,1.20388116]
[1734926387423,3.76596,3351.2,3350.3,1.20388116]
[1734926387591,0.7819,3351.2,3350.3,1.20388116]
[1734926387791,1.158469,3351.2,3350.3,1.20388116]
[1734926388094,1.158469,3351.2,3350.2,1.20388116]
[1734926388095,3.76591,3351.2,3350.2,1.20388116]
[1734926388318,0.7819,3351.2,3350.2,1.20388116]
[1734926389086,0.7819,3351.2,3350.3,1.20388116]
[1734926391630,0.7819,3351.2,3350.3,4.18864116]
[1734926392027,0.7819,3351.2,3350.3,1.20388116]
[1734926392230,0.7819,3351.2,3350.3,3.91573858]
[1734926392860,1.158474,3351.2,3350.3,3.91573858]
[1734926393065,0.7819,3351.2,3350.4,3.0]
[1734926393261,0.7819,3351.2,3350.4,4.51767411]
[1734926394183,0.7819,3351.2,3350.5,2.72155527]
[1734926394942,0.7819,3351.2,3350.7,2.71185742]
[1734926396882,0.7819,3351.2,3350.7,5.69629742]
[1734926397041,0.7819,3351.2,3350.7,2.71185742]
[1734926397244,0.7819,3351.2,3350.8,2.52966141]
[1734926397443,2.9835,3351.8,3350.8,2.52966141]
[1734926397877,0.27878146,3351.7,3350.8,2.52966141]
[1734926398372,0.27878146,3351.6,3350.8,2.52966141]
[1734926399082,0.27878146,3351.5,3350.8,2.52966141]
[1734926399490,0.27878146,3351.6,3350.8,2.52966141]
[1734926400081,0.27878146,3351.5,3350.8,2.52966141]
[1734926400280,0.27878146,3351.5,3350.8,5.51400141]
[1734926400497,1.07678146,3351.5,3350.8,5.51400141]
[1734926400800,0.798,3351.5,3350.8,5.51400141]
[1734926401663,0.798,3351.5,3350.9,2.52966141]
[1734926402073,0.7544,3352.3,3350.9,2.52966141]
[1734926402272,3.73795,3351.8,3350.9,2.52966141]
[1734926402463,0.7544,3351.6,3350.9,2.52966141]
[1734926402901,0.27893103,3351.5,3350.9,2.52966141]
[1734926403065,0.27893103,3351.5,3351.0,4.50185411]
[1734926403385,0.7668,3351.9,3351.1,2.98409]
[1734926403585,0.7668,3351.9,3351.2,2.98394]
[1734926403771,0.7668,3351.9,3351.0,1.51767411]
[1734926403986,0.27901863,3351.8,3351.0,1.51767411]
[1734926404200,0.27901863,3351.8,3351.0,4.50182411]
[1734926404403,0.27901863,3351.8,3351.2,1.0119873]
[1734926404703,0.7862,3352.2,3351.5,2.71185742]
[1734926404900,0.7862,3352.6,3351.9,2.98332]
[1734926405275,0.7862,3352.6,3352.0,2.98329]
[1734926405502,0.7862,3352.6,3351.6,3.7663]
[1734926405704,0.7862,3352.6,3351.3,9.7463]
[1734926405903,0.7862,3352.6,3351.6,2.52557623]
[1734926406062,0.7862,3352.4,3351.6,2.52557623]
[1734926406262,0.7862,3352.0,3351.6,2.52557623]
[1734926406681,0.27890264,3351.9,3351.6,2.52557623]
[1734926406999,0.27890264,3351.9,3351.0,0.7663]
[1734926407189,0.27890264,3351.9,3351.3,0.7663]
[1734926407388,0.7862,3352.4,3351.6,2.98362]
[1734926407593,0.7862,3352.4,3351.6,2.98356]
[1734926407902,0.7862,3352.4,3351.6,0.55]
[1734926408089,0.7862,3352.9,3351.9,3.74965]
[1734926408399,0.7862,3352.9,3351.9,0.7663]
[1734926408769,0.7862,3352.9,3351.6,4.3566]
[1734926409099,0.7862,3352.9,3351.5,10.48212742]
[1734926409298,6.94347207,3353.4,3351.5,10.48212742]
[1734926409299,0.7803,3352.7,3351.6,2.98363]
[1734926409480,0.7803,3352.7,3351.7,1.20388116]
[1734926410103,0.7803,3352.7,3351.5,1.80521412]
[1734926410270,0.7803,3352.7,3351.6,2.98364]
[1734926411527,0.8219,3353.3,3352.1,2.98319]
[1734926411815,0.8219,3353.9,3352.6,5.69460742]
[1734926411992,2.98178,3353.7,3352.6,2.71185742]
[1734926412302,2.71185742,3354.9,3353.1,0.25]
[1734926412515,2.98205,3353.4,3352.7,0.25]
[1734926412690,2.98213,3353.3,3352.7,0.25]
[1734926412894,2.98213,3353.3,3352.3,0.25]
[1734926413095,2.98174,3353.8,3352.3,0.25]
[1734926413406,3.0,3353.9,3352.5,0.25]
[1734926413572,2.98223,3353.2,3352.5,0.25]
[1734926413772,2.98232,3353.1,3352.3,0.25]
[1734926413973,2.98247,3353.0,3352.3,0.25]
[1734926414169,2.98206,3353.4,3352.3,0.25]
[1734926414506,2.96185742,3354.3,3352.1,1.80521412]
[1734926414507,2.98243,3353.0,3352.1,2.30521412]
[1734926414808,0.55,3353.7,3351.9,2.71185742]
[1734926414809,2.98219,3353.3,3352.3,0.5]
[1734926415229,0.7519,3353.2,3352.3,0.5]
[1734926415531,0.7519,3352.8,3352.3,0.5]
[1734926416334,0.7519,3352.8,3352.5,0.25]
[1734926417113,0.58873594,3353.9,3352.5,0.5]
[1734926417337,3.0,3353.7,3352.6,0.25]
[1734926417503,2.98207,3353.4,3352.6,0.25]
[1734926417701,1.088307,3353.3,3352.6,0.25]
[1734926418281,1.088307,3353.3,3352.6,1.0405]
[1734926418481,0.7901,3353.3,3352.6,1.0405]
[1734926418883,0.7901,3353.3,3352.6,0.25]
[1734926419524,0.7901,3353.3,3352.8,0.25]
[1734926419702,0.7901,3353.3,3352.8,0.5]
[1734926420631,3.77226,3353.3,3352.8,0.25]
[1734926420922,0.377226,3353.2,3352.6,0.5]
[1734926421123,0.7901,3353.3,3352.6,0.5]
[1734926421539,0.7901,3353.3,3352.3,0.25]
[1734926421684,2.98184,3353.7,3352.0,1.46786668]
[1734926421685,0.7891,3352.6,3352.0,1.46786668]
[1734926421879,3.77187,3352.6,3352.0,1.21786668]
[1734926422084,0.02729856,3352.5,3352.1,0.5]
[1734926422319,0.02729856,3352.5,3352.1,0.25]
[1734926422514,0.7891,3352.6,3352.1,0.25]
[1734926423121,0.02717535,3352.5,3352.2,0.25]
[1734926423482,0.02717535,3352.5,3352.1,0.25]
[1734926424154,0.02717535,3352.5,3352.2,0.25]
[1734926425528,0.02717535,3352.5,3352.1,0.25]
[1734926425932,0.02717535,3352.5,3352.2,0.25]
[1734926426724,0.02717535,3352.5,3351.9,0.5]
[1734926426927,3.38993088,3352.5,3351.9,0.25]
[1734926427093,3.38993088,3352.5,3351.9,0.5]
[1734926427292,3.38993088,3352.5,3351.7,0.8317]
[1734926427293,0.40708088,3352.5,3351.7,0.5]
[1734926427529,2.98326,3352.1,3351.5,1.46786668]
[1734926427738,0.02692887,3352.0,3351.5,1.46786668]
[1734926428031,2.98358,3351.7,3351.5,1.21786668]
[1734926428229,0.8273,3351.9,3351.3,1.21786668]
[1734926428425,2.98382,3351.4,3351.3,1.21786668]
[1734926428600,3.76652,3351.4,3351.3,1.21786668]
[1734926428799,3.79288454,3351.4,3351.3,1.21786668]
[1734926429134,4.74171574,3351.4,3351.3,1.21786668]
[1734926429702,4.74171574,3351.4,3350.3,1.46786668]
[1734926429703,3.0,3351.3,3350.3,1.46786668]
[1734926429901,3.68705316,3351.4,3350.3,1.46786668]
[1734926429902,3.751,3350.9,3350.3,1.21786668]
[1734926430101,2.98464,3350.5,3350.3,1.21786668]
[1734926430451,2.98464,3350.5,3349.9,0.25]
[1734926430628,2.98464,3350.5,3349.9,0.5]
[1734926430816,2.98464,3350.5,3349.9,0.25]
[1734926431827,2.98464,3350.5,3350.1,0.25]
[1734926432028,3.751,3350.9,3350.1,0.25]
[1734926432285,0.751,3350.9,3350.5,0.25]
[1734926433065,0.751,3350.9,3350.6,0.25]
[1734926433264,0.751,3350.9,3350.1,0.5]
[1734926433487,0.751,3350.9,3350.4,0.25]
[1734926433689,1.12452,3350.9,3350.1,0.25]
[1734926433832,2.98447,3350.7,3349.9,0.5]
[1734926434190,2.98458,3350.6,3349.9,0.5]
[1734926434680,2.98474,3350.4,3349.9,0.25]
[1734926434827,2.98449,3350.7,3350.0,0.25]
[1734926435027,2.98454,3350.6,3350.0,0.25]
[1734926435226,2.98454,3350.6,3350.2,0.25]
[1734926435485,2.98454,3350.6,3349.9,0.5]
[1734926435967,2.98454,3350.6,3349.9,0.25]
[1734926436190,2.98454,3350.6,3349.9,0.5]
[1734926436335,0.751,3350.9,3350.2,1.2875]
[1734926436535,0.751,3350.9,3350.2,0.5]
[1734926437649,3.751,3350.9,3350.2,0.5]
[1734926437845,0.751,3350.9,3350.2,0.5]
[1734926438046,0.751,3350.9,3350.4,0.25]
[1734926438571,0.751,3350.9,3350.3,0.25]
[1734926438745,2.98445,3350.7,3350.3,0.25]
[1734926438948,0.751,3350.9,3349.9,0.5]
[1734926439133,2.98463,3350.5,3349.9,0.5]
[1734926439333,0.751,3350.9,3349.9,0.5]
[1734926439686,2.98502,3350.1,3349.6,0.25]
[1734926440170,0.8137,3350.2,3349.6,0.5]
[1734926440533,0.8137,3350.2,3349.6,0.25]
[1734926440737,0.8137,3350.2,3349.6,0.5]
[1734926441636,2.98499,3350.1,3349.3,0.25]
[1734926441849,2.98499,3350.1,3349.7,0.25]
[1734926442055,2.98499,3350.1,3349.3,0.25]
[1734926442273,0.379869,3350.1,3349.2,1.3099]
[1734926442480,2.98518,3349.9,3349.4,0.25]
[1734926442782,2.98518,3349.9,3349.2,1.0599]
[1734926442783,2.98527,3349.8,3349.2,1.3099]
[1734926443099,2.98527,3349.8,3349.2,1.0599]
[1734926443587,2.98527,3349.8,3349.2,1.3099]
[1734926443877,2.98527,3349.8,3349.2,0.5]
[1734926444081,3.364929,3350.1,3349.4,0.5]
[1734926444581,0.8321,3349.3,3348.6,0.5]
[1734926444876,0.8321,3349.3,3347.9,1.80521412]
[1734926444877,2.9861,3348.9,3348.4,0.25]
[1734926445075,2.98623,3348.7,3348.2,2.29416668]
[1734926445277,2.98623,3348.7,3348.2,1.46786668]
[1734926446244,0.980331,3349.2,3348.2,0.25]
[1734926446447,2.98612,3348.9,3348.4,0.25]
[1734926446680,0.8321,3349.3,3348.7,0.5]
[1734926446881,3.81781,3349.3,3348.7,0.5]
[1734926447251,3.81781,3349.3,3348.7,0.25]
[1734926447454,3.81781,3349.3,3348.7,0.5]
[1734926447753,3.8178,3349.3,3348.7,0.5]
[1734926447983,2.98579,3349.2,3348.7,0.5]
[1734926448884,4.1996,3349.3,3348.7,0.25]
[1734926449094,4.1996,3349.3,3348.7,0.5]
[1734926449406,2.98583,3349.2,3348.5,0.25]
[1734926449553,1.21388,3349.3,3348.3,0.25]
[1734926449554,2.98607,3348.9,3348.3,0.25]
[1734926449748,3.8178,3349.3,3348.3,0.25]
[1734926449974,2.98632,3348.6,3348.1,0.826]
[1734926450564,3.78212,3348.6,3348.0,0.5]
[1734926450882,0.7958,3348.6,3348.0,0.5]
[1734926451082,1.74030418,3348.5,3348.0,0.5]
[1734926451282,0.7958,3348.6,3348.0,0.5]
[1734926451599,0.7958,3348.6,3348.2,0.25]
[1734926451885,0.7958,3349.0,3348.4,1.0252]
[1734926452185,0.7958,3349.0,3348.2,0.25]
[1734926452186,2.98608,3348.9,3348.2,0.25]
[1734926452388,0.7958,3349.0,3348.1,0.25]
[1734926452596,2.98648,3348.5,3348.0,0.25]
[1734926452748,2.98623,3348.8,3348.0,0.25]
[1734926452954,3.7958,3349.0,3348.4,0.25]
[1734926453154,0.7958,3349.0,3348.4,0.25]
[1734926453374,3.0,3348.9,3348.4,0.25]
[1734926454292,0.7958,3349.0,3348.4,0.25]
[1734926454671,2.98605,3348.9,3348.4,0.25]
[1734926454865,0.7958,3349.0,3348.4,0.25]
[1734926455066,3.0,3349.1,3348.3,0.5]
[1734926455271,2.986,3349.0,3348.3,0.5]
[1734926455473,3.66311,3349.0,3348.3,0.5]
[1734926455668,3.0,3349.2,3348.7,0.25]
[1734926456072,3.57965781,3349.8,3348.7,0.25]
[1734926456073,2.98562,3349.4,3348.8,0.25]
[1734926456267,2.98571,3349.3,3348.7,0.25]
[1734926456565,2.98579,3349.2,3348.7,0.25]
[1734926457174,2.98625,3348.7,3348.2,1.3132]
[1734926457369,2.98625,3348.7,3348.2,1.0632]
[1734926457587,2.98625,3348.7,3348.4,0.25]
[1734926458067,3.73636,3348.9,3348.2,1.3132]
[1734926458461,3.73636,3348.9,3348.4,0.25]
[1734926458695,4.40858,3348.9,3348.4,0.5]
[1734926458898,3.73636,3348.9,3348.4,0.5]
[1734926459620,3.0,3349.5,3348.4,0.5]
[1734926459819,0.7905,3349.4,3348.4,0.5]
[1734926460121,2.98597,3349.0,3348.4,0.5]
[1734926460397,2.98597,3349.0,3348.4,0.25]
[1734926460577,2.98606,3348.9,3348.4,0.25]
[1734926460975,2.986,3349.0,3348.4,0.25]
[1734926461208,2.98607,3348.9,3348.4,0.25]
[1734926461413,0.7725,3348.9,3348.2,0.25]
[1734926461567,2.98625,3348.7,3348.4,0.25]
[1734926461805,0.7627,3350.0,3349.2,0.7904]
[1734926462150,0.7627,3350.0,3349.4,0.25]
[1734926462347,2.98539,3349.7,3349.3,0.25]
[1734926462553,2.98539,3349.7,3349.2,0.7904]
[1734926462755,2.98539,3349.7,3349.3,0.25]
[1734926463247,3.0,3349.9,3349.3,0.5]
[1734926463396,0.7992,3350.3,3349.5,0.25]
[1734926463738,1.17912,3350.3,3349.5,0.25]
[1734926463938,3.0,3350.1,3349.5,0.25]
[1734926464123,3.77686,3350.6,3349.9,1.0338]
[1734926464301,0.7923,3350.6,3349.9,1.0338]
[1734926464498,2.9847,3350.5,3349.9,1.0338]
[1734926464697,0.7923,3350.6,3349.4,2.71185742]
[1734926464698,0.7923,3350.6,3349.6,1.0025]
[1734926464923,2.98535,3349.7,3349.2,1.0025]
[1734926465098,0.7857,3349.9,3349.1,0.25]
[1734926465296,0.7857,3349.9,3349.0,0.25]
[1734926465574,2.98562,3349.4,3349.0,0.25]
[1734926466337,0.55,3349.8,3349.0,0.25]
[1734926466552,0.55,3349.6,3349.0,0.5]
[1734926466756,3.53525,3349.8,3349.0,0.5]
[1734926466957,0.55,3349.8,3349.0,0.5]
[1734926467118,0.55,3349.8,3349.2,0.25]
[1734926467294,2.98543,3349.6,3349.0,0.5]
[1734926467499,0.55,3349.5,3349.2,0.25]
[1734926467919,2.98527,3349.8,3349.4,0.25]
[1734926468516,2.98531,3349.8,3349.4,0.25]
[1734926469137,3.0,3349.7,3348.9,0.7525]
[1734926469333,2.98596,3349.0,3348.8,0.25]
[1734926469526,2.98596,3349.0,3348.6,1.0025]
[1734926469728,2.9861,3348.9,3348.6,0.7525]
[1734926469960,2.98634,3348.6,3348.3,0.7525]
[1734926470256,0.55,3348.8,3348.5,0.25]
[1734926470257,3.53615,3348.8,3348.5,0.25]
[1734926470459,2.98624,3348.7,3348.4,0.25]
[1734926471645,0.55,3348.8,3348.5,0.25]
[1734926471863,3.53614,3348.8,3348.5,0.25]
[1734926472025,0.55,3349.2,3348.5,0.5]
[1734926472344,2.98606,3348.9,3348.5,0.5]
[1734926472505,2.98635,3348.6,3348.3,0.25]
[1734926472842,2.98635,3348.6,3348.4,0.25]
[1734926473262,2.98635,3348.6,3348.3,0.25]